[Event "RUS-ch Men Blitz 2019"]
[Site "Sochi"]
[Date "2019.10.17"]
[Round "10.30"]
[White "Skvortsov, Andrei"]
[Black "Glek, Igor"]
[Result "1/2-1/2"]
[ECO "B23"]
[WhiteElo "2139"]
[BlackElo "2467"]
[Annotator "ChessBase"]
[PlyCount "165"]
[EventDate "2019.10.17"]
[EventType "swiss"]
[EventCountry "RUS"]
[SourceTitle "playchess.com"]
[Source "ChessBase"]
[SourceQuality "1"]
[TimeControl "180+2"]

1. e4 {[%emt 0:00:00]} c5 2. Ne2 Nc6 {[%emt 0:00:00]} 3. Nbc3 {[%emt 0:00:00]} g6 {[%emt 0:00:04]} 4. g3 {[%emt 0:00:01]} Bg7 {[%emt 0:00:00]} 5. Bg2 {[%emt 0:00:02]} e6 {[%emt 0:00:07]} 6. O-O Nge7 7. f4 {[%emt 0:00:02]} O-O {[%emt 0:00:02]} 8. e5 {[%emt 0:00:03]} d6 {[%emt 0:00:10]} 9. exd6 {[%emt 0:00:04]} Qxd6 {[%emt 0:00:02]} 10. Ne4 {[%emt 0:00:02]} Qd8 {[%emt 0:00:01]} 11. Kh1 {[%emt 0:00:03]} b6 {[%emt 0:00:01]} 12. N2c3 {[%emt 0:00:08]} Bb7 13. d3 Qd7 {[%emt 0:00:12]} 14. Be3 {[%emt 0:00:05]} Nd4 {[%emt 0:00:02]} 15. Bxd4 {[%emt 0:00:15]} cxd4 {[%emt 0:00:02]} 16. Ne2 {[%emt 0:00:01]} Nf5 {[%emt 0:00:04]} 17. Qd2 {[%emt 0:00:12]} Ne3 {[%emt 0:00:02]} 18. Rf2 {[%emt 0:00:05]} Nxg2 {[%emt 0:00:04]} 19. Rxg2 {[%emt 0:00:01]} f5 {[%emt 0:00:01]} 20. Ng5 {[%emt 0:00:01]} h6 {[%emt 0:00:05]} 21. Nh3 {[%emt 0:00:04]} Rac8 {[%emt 0:00:10]} 22. Kg1 {[%emt 0:00:37]} Bxg2 {[%emt 0:00:03]} 23. Kxg2 {[%emt 0:00:01]} Qc6+ {[%emt 0:00:02]} 24. Kf2 {[%emt 0:00:02]} Qxc2 {[%emt 0:00:02]} 25. Rd1 {[%emt 0:00:01]} Qxd2 {[%emt 0:00:04]} 26. Rxd2 {[%emt 0:00:01]} Rc5 {[%emt 0:00:06]} 27. Nhg1 {[%emt 0:00:01]} g5 {[%emt 0:00:14]} 28. Nf3 {[%emt 0:00:02]} g4 {[%emt 0:00:02]} 29. Nfxd4 {[%emt 0:00:02]} Kf7 30. Nb3 Rc7 {[%emt 0:00:21]} 31. d4 {[%emt 0:00:02]} Rfc8 {[%emt 0:00:03]} 32. Nc3 {[%emt 0:00:01]} Rd7 {[%emt 0:00:05]} 33. Ke3 {[%emt 0:00:03]} h5 {[%emt 0:00:05]} 34. Nd1 {[%emt 0:00:04]} a5 {[%emt 0:00:05]} 35. Nc3 {[%emt 0:00:05]} Rc4 {[%emt 0:00:03]} 36. Ne2 {[%emt 0:00:28]} a4 {[%emt 0:00:02]} 37. Na1 {[%emt 0:00:00]} Rdc7 {[%emt 0:00:08]} 38. b3 {[%emt 0:00:07]} axb3 {[%emt 0:00:09]} 39. axb3 {[%emt 0:00:01]} Rb4 {[%emt 0:00:02]} 40. Ra2 {[%emt 0:00:04]} Rd7 {[%emt 0:00:05]} 41. Rd2 {[%emt 0:00:21]} Ra7 {[%emt 0:00:01]} 42. Rd1 {[%emt 0:00:01]} Ra2 {[%emt 0:00:10]} 43. Kd3 {[%emt 0:00:01]} Bf8 {[%emt 0:00:07]} 44. Rb1 {[%emt 0:00:18]} Rxe2 {[%emt 0:00:16]} 45. Kxe2 {[%emt 0:00:01]} Rxd4 {[%emt 0:00:01]} 46. Nc2 {[%emt 0:00:02]} Re4+ 47. Kd3 Bc5 {[%emt 0:00:02]} 48. Ra1 {[%emt 0:00:02]} h4 {[%emt 0:00:05]} 49. Rf1 {[%emt 0:00:31]} h3 {[%emt 0:00:08]} 50. Ra1 {[%emt 0:00:05]} Kf6 {[%emt 0:00:01]} 51. Rf1 {[%emt 0:00:15]} e5 {[%emt 0:00:01]} 52. fxe5+ {[%emt 0:00:02]} Kxe5 {[%emt 0:00:02]} 53. Ra1 {[%emt 0:00:05]} f4 {[%emt 0:00:06]} 54. gxf4+ {[%emt 0:00:02]} Rxf4 {[%emt 0:00:01]} 55. Re1+ {[%emt 0:00:01]} Kf5 {[%emt 0:00:03]} 56. Re2 {[%emt 0:00:05]} b5 {[%emt 0:00:07]} 57. b4 {[%emt 0:00:03]} Bxb4 58. Nd4+ Kf6 {[%emt 0:00:09]} 59. Nxb5 {[%emt 0:00:06]} Rf3+ {[%emt 0:00:05]} 60. Ke4 {[%emt 0:00:02]} Bc5 {[%emt 0:00:08]} 61. Nc7 {[%emt 0:00:00]} Bd6 {[%emt 0:00:01]} 62. Nd5+ {[%emt 0:00:01]} Kg5 {[%emt 0:00:01]} 63. Rc2 {[%emt 0:00:02]} Rf1 {[%emt 0:00:05]} 64. Ne3 {[%emt 0:00:03]} Re1 {[%emt 0:00:04]} 65. Kd3 {[%emt 0:00:01]} Bf4 {[%emt 0:00:02]} 66. Nd5 {[%emt 0:00:02]} Rd1+ {[%emt 0:00:03]} 67. Ke4 {[%emt 0:00:01]} Bd6 {[%emt 0:00:02]} 68. Ne3 {[%emt 0:00:03]} Rh1 {[%emt 0:00:02]} 69. Rc6 {[%emt 0:00:03]} Bxh2 {[%emt 0:00:02]} 70. Rc5+ Kg6 {[%emt 0:00:06]} 71. Nxg4 {[%emt 0:00:03]} Bg3 {[%emt 0:00:05]} 72. Kf3 {[%emt 0:00:03]} Bh4 {[%emt 0:00:04]} 73. Rc6+ {[%emt 0:00:01]} Kf5 {[%emt 0:00:01]} 74. Rc5+ {[%emt 0:00:01]} Ke6 {[%emt 0:00:01]} 75. Rh5 {[%emt 0:00:02]} Be1 {[%emt 0:00:03]} 76. Nf2 {[%emt 0:00:05]} Rf1 {[%emt 0:00:05]} 77. Ke2 {[%emt 0:00:00]} Rxf2+ {[%emt 0:00:11]} 78. Kxe1 {[%emt 0:00:01]} Rf3 {[%emt 0:00:02]} 79. Ke2 {[%emt 0:00:01]} Ra3 {[%emt 0:00:00]} 80. Kf2 {[%emt 0:00:01]} Kf6 {[%emt 0:00:01]} 81. Kg1 {[%emt 0:00:02]} Kg6 {[%emt 0:00:01]} 82. Rh8 {[%emt 0:00:01]} Kg5 {[%emt 0:00:00]} 83. Kh2 {[%emt 0:00:01]} 1/2-1/2

[Event "RUS-ch Men Blitz 2019"]
[Site "Sochi"]
[Date "2019.10.17"]
[Round "10.31"]
[White "Bespalov, Konstantin"]
[Black "Musalov, Ruslan"]
[Result "0-1"]
[ECO "C55"]
[WhiteElo "2258"]
[BlackElo "2348"]
[Annotator "NA"]
[PlyCount "129"]
[EventDate "2019.10.17"]
[EventType "swiss"]
[EventCountry "RUS"]
[SourceTitle "playchess.com"]
[Source "ChessBase"]
[SourceQuality "1"]
[TimeControl "180+2"]

1. e4 e5 2. Bc4 Nf6 3. d4 exd4 4. Nf3 Nc6 5. O-O Bc5 6. e5 d5 7. exf6 dxc4 8. fxg7 Rg8 9. Re1+ Be6 10. Bg5 Qd5 11. Nc3 Qf5 12. Ne4 Rxg7 13. Nh4 Qxg5 14. Nxg5 Rxg5 15. Nf3 Rd5 16. b3 cxb3 17. axb3 O-O-O 18. Qd3 a6 19. Qxh7 d3 20. cxd3 Rxd3 21. Rec1 Bb6 22. h3 Rxb3 23. Qc2 Rbd3 24. Rxa6 bxa6 25. Qxc6 Rd1+ 26. Rxd1 Rxd1+ 27. Kh2 Bd5 28. Qa4 Bxf3 29. gxf3 Rd2 30. Qxa6+ Kb8 31. Kg3 Bxf2+ 32. Kg4 Rd6 33. Qb5+ Bb6 34. Qe8+ Kb7 35. Qxf7 Be3 36. Qb3+ Bb6 37. f4 c5 38. f5 c4 39. Qf3+ Kc7 40. f6 Rc6 41. f7 Bc5 42. f8=Q Bxf8 43. Qxf8 c3 44. Qf7+ Kb8 45. Qb3+ Kc7 46. Qc2 Kd7 47. h4 Ke7 48. h5 Kf7 49. Qf5+ Ke7 50. Qe4+ Kd7 51. Qc2 Ke7 52. Kg5 Kf7 53. Qf5+ Ke7 54. Qe4+ Kd7 55. Qc2 Ke7 56. h6 Rc5+ 57. Kg6 Rc6+ 58. Kg7 Rc5 59. Qe4+ Kd6 60. Qf4+ Kd5 61. h7 c2 62. Qc1 Rc7+ 63. Kg6 Rc6+ 64. Kf5 Rc8 65. Qd2+ 0-1

[Event "RUS-ch Men Blitz 2019"]
[Site "Sochi"]
[Date "2019.10.17"]
[Round "11.3"]
[White "Shimanov, Aleksandr"]
[Black "Yudin, Sergei"]
[Result "1/2-1/2"]
[ECO "D00"]
[WhiteElo "2587"]
[BlackElo "2497"]
[Annotator "ChessBase"]
[PlyCount "80"]
[EventDate "2019.10.17"]
[EventType "swiss"]
[EventCountry "RUS"]
[SourceTitle "playchess.com"]
[Source "ChessBase"]
[SourceQuality "1"]
[TimeControl "180+2"]

1. d4 {[%emt 0:00:00]} d5 {[%emt 0:00:00]} 2. Bf4 {[%emt 0:00:05]} c5 {[%emt 0:00:03]} 3. e3 {[%emt 0:00:02]} Nc6 {[%emt 0:00:01]} 4. c3 {[%emt 0:00:09]} Nf6 {[%emt 0:00:03]} 5. Nd2 {[%emt 0:00:02]} Bf5 {[%emt 0:00:02]} 6. Ngf3 {[%emt 0:00:03]} e6 {[%emt 0:00:03]} 7. Qb3 {[%emt 0:00:01]} Qc8 {[%emt 0:00:26]} 8. Nh4 {[%emt 0:00:16]} Bg4 {[%emt 0:00:25]} 9. h3 {[%emt 0:00:12]} Bh5 {[%emt 0:00:01]} 10. g4 {[%emt 0:00:05]} Bg6 {[%emt 0:00:01]} 11. Nxg6 {[%emt 0:00:02]} hxg6 {[%emt 0:00:02]} 12. Bg2 {[%emt 0:00:01]} Be7 {[%emt 0:00:05]} 13. O-O {[%emt 0:00:43]} O-O {[%emt 0:00:05]} 14. Rfd1 {[%emt 0:00:09]} Rd8 {[%emt 0:00:02]} 15. Rac1 {[%emt 0:00:03]} cxd4 {[%emt 0:00:31]} 16. exd4 {[%emt 0:00:16]} Bd6 {[%emt 0:00:09]} 17. Bxd6 {[%emt 0:00:18]} Rxd6 {[%emt 0:00:02]} 18. f4 {[%emt 0:00:01]} Qc7 {[%emt 0:00:05]} 19. Rf1 {[%emt 0:00:02]} b5 {[%emt 0:00:07]} 20. Rce1 {[%emt 0:00:14]} b4 {[%emt 0:00:07]} 21. f5 {[%emt 0:00:03]} bxc3 {[%emt 0:00:06]} 22. bxc3 {[%emt 0:00:01]} exf5 {[%emt 0:00:06]} 23. gxf5 {[%emt 0:00:01]} g5 {[%emt 0:00:08]} 24. Re3 {[%emt 0:00:10]} Rb8 {[%emt 0:00:03]} 25. Qa3 {[%emt 0:00:04]} Rdd8 {[%emt 0:00:15]} 26. Rfe1 {[%emt 0:00:03]} Nh5 {[%emt 0:00:14]} 27. Qc5 {[%emt 0:00:06]} Nf4 {[%emt 0:00:11]} 28. Nf3 {[%emt 0:00:10]} Nxg2 {[%emt 0:00:17]} 29. Kxg2 {[%emt 0:00:01]} Rb2+ {[%emt 0:00:01]} 30. R1e2 {[%emt 0:00:01]} Rxe2+ {[%emt 0:00:02]} 31. Rxe2 {[%emt 0:00:01]} Qd7 {[%emt 0:00:10]} 32. Ne5 {[%emt 0:00:05]} Nxe5 {[%emt 0:00:02]} 33. Rxe5 {[%emt 0:00:01]} f6 {[%emt 0:00:01]} 34. Re6 {[%emt 0:00:01]} Rc8 {[%emt 0:00:02]} 35. Qb4 {[%emt 0:00:10]} Qc7 {[%emt 0:00:03]} 36. Qb5 {[%emt 0:00:07]} Qxc3 {[%emt 0:00:05]} 37. Qxd5 {[%emt 0:00:04]} Kh7 {[%emt 0:00:02]} 38. Re2 {[%emt 0:00:03]} Qd3 {[%emt 0:00:02]} 39. Qf3 {[%emt 0:00:02]} Qxd4 {[%emt 0:00:05]} 40. Qh5+ {[%emt 0:00:02]} Kg8 {[%emt 0:00:00]} 1/2-1/2

[Event "RUS-ch Men Blitz 2019"]
[Site "Sochi"]
[Date "2019.10.17"]
[Round "11.5"]
[White "Golubov, Saveliy"]
[Black "Sakaev, Konstantin"]
[Result "1/2-1/2"]
[ECO "D02"]
[WhiteElo "2469"]
[BlackElo "2595"]
[Annotator "ChessBase"]
[PlyCount "245"]
[EventDate "2019.10.17"]
[EventType "swiss"]
[EventCountry "RUS"]
[SourceTitle "playchess.com"]
[Source "ChessBase"]
[SourceQuality "1"]
[TimeControl "180+2"]

1. d4 {[%emt 0:00:00]} d5 {[%emt 0:00:00]} 2. Nf3 {[%emt 0:00:00]} Nf6 {[%emt 0:00:03]} 3. c3 {[%emt 0:00:00]} e6 {[%emt 0:00:02]} 4. Bf4 {[%emt 0:00:01]} c5 {[%emt 0:00:02]} 5. e3 {[%emt 0:00:01]} Nc6 {[%emt 0:00:02]} 6. Nbd2 {[%emt 0:00:01]} cxd4 {[%emt 0:00:02]} 7. exd4 {[%emt 0:00:01]} Nh5 {[%emt 0:00:01]} 8. Bg3 {[%emt 0:00:11]} Nxg3 {[%emt 0:00:18]} 9. hxg3 {[%emt 0:00:01]} g6 {[%emt 0:00:06]} 10. g4 {[%emt 0:00:11]} Bg7 {[%emt 0:00:14]} 11. Be2 {[%emt 0:00:02]} Qd6 {[%emt 0:00:08]} 12. O-O {[%emt 0:00:16]} O-O {[%emt 0:00:20]} 13. a4 {[%emt 0:00:15]} f6 {[%emt 0:00:11]} 14. Re1 {[%emt 0:00:12]} e5 {[%emt 0:00:08]} 15. dxe5 {[%emt 0:00:08]} fxe5 {[%emt 0:00:02]} 16. g5 {[%emt 0:00:42]} Be6 {[%emt 0:00:18]} 17. c4 {[%emt 0:00:54]} Rad8 {[%emt 0:00:01]} 18. cxd5 {[%emt 0:00:03]} Bxd5 {[%emt 0:00:01]} 19. Bc4 {[%emt 0:00:05]} Bxc4 {[%emt 0:00:25]} 20. Nxc4 {[%emt 0:00:01]} Qxd1 {[%emt 0:00:22]} 21. Raxd1 {[%emt 0:00:01]} Rxd1 {[%emt 0:00:17]} 22. Rxd1 {[%emt 0:00:01]} e4 {[%emt 0:00:11]} 23. Nfd2 {[%emt 0:00:07]} Rd8 {[%emt 0:00:01]} 24. Re1 {[%emt 0:00:07]} Bxb2 {[%emt 0:00:01]} 25. Nxe4 {[%emt 0:00:02]} Bd4 {[%emt 0:00:04]} 26. Ncd6 {[%emt 0:00:12]} b6 {[%emt 0:00:05]} 27. Rc1 {[%emt 0:00:01]} Nb4 {[%emt 0:00:17]} 28. Rc4 {[%emt 0:00:10]} Bc5 {[%emt 0:00:05]} 29. Nf6+ {[%emt 0:00:06]} Kg7 {[%emt 0:00:03]} 30. Nde4 {[%emt 0:00:03]} Nd3 {[%emt 0:00:02]} 31. Kf1 {[%emt 0:00:03]} Rd4 {[%emt 0:00:04]} 32. Rc3 {[%emt 0:00:02]} Nf4 {[%emt 0:00:03]} 33. Rc1 {[%emt 0:00:03]} Rxa4 {[%emt 0:00:02]} 34. g3 {[%emt 0:00:00]} Ne6 {[%emt 0:00:01]} 35. Rd1 {[%emt 0:00:04]} Rd4 36. Ra1 a5 {[%emt 0:00:03]} 37. Rb1 {[%emt 0:00:01]} Nxg5 38. Nxc5 {[%emt 0:00:05]} bxc5 {[%emt 0:00:02]} 39. Ne8+ {[%emt 0:00:02]} Kf7 {[%emt 0:00:01]} 40. Nc7 {[%emt 0:00:01]} Rb4 {[%emt 0:00:02]} 41. Ra1 {[%emt 0:00:02]} a4 {[%emt 0:00:01]} 42. Nd5 {[%emt 0:00:02]} Rd4 {[%emt 0:00:01]} 43. Nc3 {[%emt 0:00:02]} Ne4 {[%emt 0:00:01]} 44. Nxa4 {[%emt 0:00:01]} Rd2 {[%emt 0:00:01]} 45. Ke1 {[%emt 0:00:02]} Rxf2 {[%emt 0:00:03]} 46. Nxc5 {[%emt 0:00:01]} Rf3 {[%emt 0:00:05]} 47. Ke2 {[%emt 0:00:04]} Ng5 {[%emt 0:00:02]} 48. Ne4 {[%emt 0:00:01]} Kg7 {[%emt 0:00:05]} 49. Nxg5 {[%emt 0:00:02]} Rxg3 {[%emt 0:00:01]} 50. Ra7+ {[%emt 0:00:01]} Kh6 {[%emt 0:00:01]} 51. Nxh7 {[%emt 0:00:03]} Rb3 {[%emt 0:00:01]} 52. Nf6 {[%emt 0:00:01]} Rb6 {[%emt 0:00:01]} 53. Ne4 {[%emt 0:00:02]} Re6 {[%emt 0:00:01]} 54. Kf3 {[%emt 0:00:01]} g5 {[%emt 0:00:02]} 55. Ra4 {[%emt 0:00:03]} Kg6 {[%emt 0:00:02]} 56. Kg4 {[%emt 0:00:01]} Rc6 {[%emt 0:00:00]} 57. Ra5 {[%emt 0:00:03]} Rc4 {[%emt 0:00:01]} 58. Ra6+ {[%emt 0:00:01]} Kf7 {[%emt 0:00:02]} 59. Kf5 {[%emt 0:00:01]} Ke7 {[%emt 0:00:01]} 60. Ra7+ {[%emt 0:00:01]} Kd8 {[%emt 0:00:00]} 61. Ke5 {[%emt 0:00:01]} Rc1 {[%emt 0:00:03]} 62. Nf6 {[%emt 0:00:07]} g4 {[%emt 0:00:03]} 63. Kd6 {[%emt 0:00:00]} Rd1+ {[%emt 0:00:01]} 64. Nd5 {[%emt 0:00:02]} Ke8 {[%emt 0:00:02]} 65. Rg7 {[%emt 0:00:04]} g3 {[%emt 0:00:02]} 66. Ke6 {[%emt 0:00:03]} Re1+ {[%emt 0:00:01]} 67. Kf5 {[%emt 0:00:01]} Rf1+ {[%emt 0:00:02]} 68. Ke4 {[%emt 0:00:03]} Re1+ {[%emt 0:00:01]} 69. Ne3 {[%emt 0:00:01]} Kf8 {[%emt 0:00:01]} 70. Rg4 {[%emt 0:00:02]} Ke8 {[%emt 0:00:01]} 71. Rxg3 {[%emt 0:00:01]} Kd7 {[%emt 0:00:04]} 72. Kd5 {[%emt 0:00:03]} Ke7 {[%emt 0:00:02]} 73. Nc4 {[%emt 0:00:02]} Rd1+ {[%emt 0:00:02]} 74. Ke5 {[%emt 0:00:01]} Re1+ {[%emt 0:00:01]} 75. Ne3 {[%emt 0:00:01]} Kd7 {[%emt 0:00:00]} 76. Rg7+ {[%emt 0:00:02]} Ke8 {[%emt 0:00:03]} 77. Kf4 {[%emt 0:00:01]} Kd8 {[%emt 0:00:02]} 78. Nc4 {[%emt 0:00:03]} Rf1+ {[%emt 0:00:02]} 79. Ke5 {[%emt 0:00:01]} Re1+ {[%emt 0:00:02]} 80. Kd6 {[%emt 0:00:01]} Rd1+ {[%emt 0:00:01]} 81. Ke6 {[%emt 0:00:02]} Re1+ {[%emt 0:00:02]} 82. Ne5 {[%emt 0:00:01]} Rd1 {[%emt 0:00:01]} 83. Nf7+ {[%emt 0:00:05]} Kc7 {[%emt 0:00:03]} 84. Rg3 {[%emt 0:00:02]} Re1+ {[%emt 0:00:01]} 85. Ne5 {[%emt 0:00:00]} Kd8 {[%emt 0:00:06]} 86. Rc3 {[%emt 0:00:01]} Re2 {[%emt 0:00:05]} 87. Rc1 {[%emt 0:00:01]} Re3 {[%emt 0:00:06]} 88. Kd6 {[%emt 0:00:01]} Re2 {[%emt 0:00:04]} 89. Ke6 {[%emt 0:00:09]} Re3 {[%emt 0:00:04]} 90. Kd6 {[%emt 0:00:02]} Re2 {[%emt 0:00:01]} 91. Rd1 {[%emt 0:00:02]} Kc8 {[%emt 0:00:02]} 92. Nc6 {[%emt 0:00:02]} Rh2 {[%emt 0:00:05]} 93. Rb1 {[%emt 0:00:03]} Rh6+ {[%emt 0:00:02]} 94. Kc5 {[%emt 0:00:01]} Rh5+ {[%emt 0:00:02]} 95. Kb6 {[%emt 0:00:01]} Kd7 {[%emt 0:00:01]} 96. Rd1+ {[%emt 0:00:04]} Ke6 {[%emt 0:00:02]} 97. Rd8 {[%emt 0:00:02]} Rh1 {[%emt 0:00:02]} 98. Nd4+ {[%emt 0:00:01]} Ke5 {[%emt 0:00:01]} 99. Kc5 {[%emt 0:00:03]} Rc1+ {[%emt 0:00:01]} 100. Kb4 {[%emt 0:00:01]} Rb1+ {[%emt 0:00:02]} 101. Kc3 {[%emt 0:00:01]} Rc1+ {[%emt 0:00:01]} 102. Kd2 {[%emt 0:00:00]} Rh1 {[%emt 0:00:03]} 103. Rd7 {[%emt 0:00:03]} Rh2+ {[%emt 0:00:01]} 104. Ke3 {[%emt 0:00:01]} Rh3+ {[%emt 0:00:02]} 105. Nf3+ {[%emt 0:00:01]} Ke6 {[%emt 0:00:01]} 106. Ra7 {[%emt 0:00:01]} Rh1 {[%emt 0:00:02]} 107. Ke4 {[%emt 0:00:01]} Kd6 {[%emt 0:00:01]} 108. Ra6+ {[%emt 0:00:01]} Ke7 {[%emt 0:00:03]} 109. Ke5 {[%emt 0:00:01]} Rf1 {[%emt 0:00:03]} 110. Ra7+ {[%emt 0:00:01]} Kd8 {[%emt 0:00:01]} 111. Nd4 {[%emt 0:00:02]} Re1+ {[%emt 0:00:01]} 112. Kd6 {[%emt 0:00:01]} Ke8 {[%emt 0:00:02]} 113. Nc6 {[%emt 0:00:02]} Rd1+ {[%emt 0:00:07]} 114. Ke6 {[%emt 0:00:01]} Re1+ {[%emt 0:00:02]} 115. Ne5 {[%emt 0:00:00]} Kd8 {[%emt 0:00:01]} 116. Rh7 {[%emt 0:00:02]} Kc8 {[%emt 0:00:02]} 117. Ra7 {[%emt 0:00:08]} Re2 {[%emt 0:00:02]} 118. Ra1 {[%emt 0:00:01]} Kc7 {[%emt 0:00:03]} 119. Rd1 {[%emt 0:00:01]} Rh2 {[%emt 0:00:04]} 120. Rc1+ {[%emt 0:00:03]} Kb6 {[%emt 0:00:01]} 121. Nc4+ {[%emt 0:00:03]} Kb5 {[%emt 0:00:01]} 122. Nd6+ {[%emt 0:00:01]} Kb4 {[%emt 0:00:01]} 123. Ne4 {[%emt 0:00:05]} 1/2-1/2

[Event "RUS-ch Men Blitz 2019"]
[Site "Sochi"]
[Date "2019.10.17"]
[Round "11.6"]
[White "Nozdrachev, Vladislav"]
[Black "Yuffa, Daniil"]
[Result "0-1"]
[ECO "B18"]
[WhiteElo "2494"]
[BlackElo "2577"]
[Annotator "ChessBase"]
[PlyCount "106"]
[EventDate "2019.10.17"]
[EventType "swiss"]
[EventCountry "RUS"]
[SourceTitle "playchess.com"]
[Source "ChessBase"]
[SourceQuality "1"]
[TimeControl "180+2"]

1. e4 {[%emt 0:00:00]} c6 {[%emt 0:00:00]} 2. d4 {[%emt 0:00:02]} d5 {[%emt 0:00:00]} 3. Nc3 {[%emt 0:00:01]} dxe4 {[%emt 0:00:00]} 4. Nxe4 {[%emt 0:00:01]} Bf5 {[%emt 0:00:01]} 5. Ng3 {[%emt 0:00:01]} Bg6 {[%emt 0:00:01]} 6. Nh3 {[%emt 0:00:11]} Nf6 {[%emt 0:00:01]} 7. Nf4 {[%emt 0:00:02]} e5 {[%emt 0:00:03]} 8. dxe5 {[%emt 0:00:04]} Qa5+ {[%emt 0:00:01]} 9. Bd2 {[%emt 0:00:23]} Qxe5+ {[%emt 0:00:02]} 10. Be2 {[%emt 0:00:02]} Nbd7 {[%emt 0:00:03]} 11. O-O {[%emt 0:00:05]} O-O-O {[%emt 0:00:06]} 12. Qc1 {[%emt 0:00:09]} Bc5 {[%emt 0:00:19]} 13. Bc3 {[%emt 0:00:06]} Qc7 {[%emt 0:00:09]} 14. a4 {[%emt 0:00:09]} h5 {[%emt 0:00:14]} 15. Nxg6 {[%emt 0:00:04]} fxg6 {[%emt 0:00:02]} 16. Bd3 {[%emt 0:00:08]} Ne5 {[%emt 0:00:10]} 17. Qg5 {[%emt 0:00:17]} Rd5 {[%emt 0:00:19]} 18. Bxe5 {[%emt 0:00:07]} Rxe5 {[%emt 0:00:02]} 19. Qxg6 {[%emt 0:00:15]} Rh6 {[%emt 0:00:01]} 20. Bf5+ {[%emt 0:00:00]} Kb8 {[%emt 0:00:06]} 21. Qg5 {[%emt 0:00:05]} h4 {[%emt 0:00:03]} 22. b4 {[%emt 0:00:20]} hxg3 {[%emt 0:00:02]} 23. bxc5 {[%emt 0:00:03]} gxh2+ {[%emt 0:00:12]} 24. Kh1 {[%emt 0:00:01]} Rh5 {[%emt 0:00:01]} 25. Qd2 {[%emt 0:00:18]} Rhxf5 {[%emt 0:00:05]} 26. f4 {[%emt 0:00:05]} Rxc5 {[%emt 0:00:02]} 27. Rae1 {[%emt 0:00:01]} Rfd5 {[%emt 0:00:10]} 28. Qf2 {[%emt 0:00:03]} a5 {[%emt 0:00:07]} 29. Re2 {[%emt 0:00:05]} Rc4 {[%emt 0:00:11]} 30. Rfe1 {[%emt 0:00:02]} Qxf4 {[%emt 0:00:15]} 31. Qb6 {[%emt 0:00:12]} Re4 {[%emt 0:00:03]} 32. Rb1 {[%emt 0:00:12]} Qc7 {[%emt 0:00:15]} 33. Qf2 {[%emt 0:00:01]} Rxe2 {[%emt 0:00:06]} 34. Qxe2 {[%emt 0:00:01]} Qe5 {[%emt 0:00:07]} 35. Qf2 {[%emt 0:00:05]} Rd4 {[%emt 0:00:12]} 36. Qf3 {[%emt 0:00:08]} Rxa4 {[%emt 0:00:05]} 37. c3 {[%emt 0:00:07]} Re4 {[%emt 0:00:10]} 38. Qf2 {[%emt 0:00:04]} Re2 {[%emt 0:00:10]} 39. Qh4 {[%emt 0:00:02]} Qe4 {[%emt 0:00:04]} 40. Qg3+ {[%emt 0:00:04]} Ka8 {[%emt 0:00:02]} 41. Ra1 {[%emt 0:00:02]} Qe5 {[%emt 0:00:11]} 42. Qh4 {[%emt 0:00:01]} Re4 {[%emt 0:00:02]} 43. Qf2 {[%emt 0:00:06]} a4 {[%emt 0:00:03]} 44. Qd2 {[%emt 0:00:06]} Qd5 {[%emt 0:00:02]} 45. Qf2 {[%emt 0:00:03]} Kb8 {[%emt 0:00:02]} 46. Qb6 {[%emt 0:00:02]} a3 {[%emt 0:00:04]} 47. c4 {[%emt 0:00:02]} Qd4 {[%emt 0:00:04]} 48. Qb1 {[%emt 0:00:03]} Qb2 {[%emt 0:00:01]} 49. Qd1 {[%emt 0:00:01]} Rd4 {[%emt 0:00:02]} 50. Qe1 {[%emt 0:00:02]} Rd8 {[%emt 0:00:02]} 51. Qg3+ {[%emt 0:00:02]} Kc8 {[%emt 0:00:02]} 52. Rxa3 {[%emt 0:00:01]} Qc1+ {[%emt 0:00:03]} 53. Kxh2 {[%emt 0:00:01]} Rh8+ {[%emt 0:00:00]} 0-1

[Event "RUS-ch Men Blitz 2019"]
[Site "Sochi"]
[Date "2019.10.17"]
[Round "11.7"]
[White "Nesterov, Arseniy"]
[Black "Savchenko, Boris"]
[Result "0-1"]
[ECO "A05"]
[WhiteElo "2484"]
[BlackElo "2581"]
[Annotator "ChessBase"]
[PlyCount "64"]
[EventDate "2019.10.17"]
[EventType "swiss"]
[EventCountry "RUS"]
[SourceTitle "playchess.com"]
[Source "ChessBase"]
[SourceQuality "1"]
[TimeControl "180+2"]

1. Nf3 {[%emt 0:00:00]} Nf6 {[%emt 0:00:00]} 2. c4 {[%emt 0:00:00]} g6 {[%emt 0:00:02]} 3. Nc3 {[%emt 0:00:01]} d5 {[%emt 0:00:02]} 4. cxd5 {[%emt 0:00:02]} Nxd5 {[%emt 0:00:02]} 5. Qc2 {[%emt 0:00:01]} Bg7 {[%emt 0:00:02]} 6. e4 {[%emt 0:00:02]} Nb6 {[%emt 0:00:39]} 7. d4 {[%emt 0:00:06]} Bg4 {[%emt 0:00:03]} 8. Be3 {[%emt 0:00:34]} Bxf3 {[%emt 0:00:16]} 9. gxf3 {[%emt 0:00:01]} Bxd4 {[%emt 0:00:02]} 10. Nb5 {[%emt 0:00:25]} Nc6 {[%emt 0:00:22]} 11. Rd1 {[%emt 0:00:23]} e5 {[%emt 0:00:03]} 12. Nxd4 {[%emt 0:00:16]} Nxd4 {[%emt 0:00:02]} 13. Bxd4 {[%emt 0:00:28]} exd4 {[%emt 0:00:02]} 14. Qc5 {[%emt 0:00:01]} Qe7 {[%emt 0:00:18]} 15. Bb5+ {[%emt 0:00:03]} c6 {[%emt 0:00:01]} 16. Bxc6+ {[%emt 0:00:38]} bxc6 {[%emt 0:00:02]} 17. Qxc6+ {[%emt 0:00:01]} Kf8 {[%emt 0:00:02]} 18. O-O {[%emt 0:00:17]} Rc8 {[%emt 0:00:07]} 19. Qb5 {[%emt 0:00:01]} Rc5 {[%emt 0:00:01]} 20. Qd3 {[%emt 0:00:03]} Qg5+ {[%emt 0:00:08]} 21. Kh1 {[%emt 0:00:01]} Qf4 {[%emt 0:00:01]} 22. Qa3 {[%emt 0:00:09]} Qd6 {[%emt 0:00:18]} 23. Qxa7 {[%emt 0:00:06]} Kg7 {[%emt 0:00:03]} 24. Qa3 {[%emt 0:00:01]} Rd8 {[%emt 0:00:03]} 25. Rd3 {[%emt 0:00:05]} Nc4 {[%emt 0:00:03]} 26. Qb4 {[%emt 0:00:01]} Ne5 {[%emt 0:00:03]} 27. Rb3 {[%emt 0:00:01]} d3 {[%emt 0:00:03]} 28. f4 {[%emt 0:00:01]} Nf3 {[%emt 0:00:07]} 29. Kg2 {[%emt 0:00:03]} Qxf4 {[%emt 0:00:17]} 30. Qxc5 {[%emt 0:00:02]} Qg4+ {[%emt 0:00:01]} 31. Kh1 {[%emt 0:00:01]} Qh3 {[%emt 0:00:01]} 32. Qc3+ {[%emt 0:00:01]} Kg8 {[%emt 0:00:01]} 0-1

[Event "RUS-ch Men Blitz 2019"]
[Site "Sochi"]
[Date "2019.10.17"]
[Round "11.8"]
[White "Korchmar, Vasiliy"]
[Black "Tsydypov, Zhamsaran"]
[Result "0-1"]
[ECO "D11"]
[WhiteElo "2432"]
[BlackElo "2553"]
[Annotator "ChessBase"]
[PlyCount "56"]
[EventDate "2019.10.17"]
[EventType "swiss"]
[EventCountry "RUS"]
[SourceTitle "playchess.com"]
[Source "ChessBase"]
[SourceQuality "1"]
[TimeControl "180+2"]

1. d4 {[%emt 0:00:00]} d5 {[%emt 0:00:00]} 2. c4 {[%emt 0:00:01]} c6 {[%emt 0:00:01]} 3. Nf3 {[%emt 0:00:01]} Nf6 {[%emt 0:00:02]} 4. g3 {[%emt 0:00:01]} dxc4 {[%emt 0:00:06]} 5. Bg2 {[%emt 0:00:02]} b5 {[%emt 0:00:03]} 6. Ne5 {[%emt 0:00:02]} Bb7 {[%emt 0:00:01]} 7. O-O {[%emt 0:00:03]} Qc8 {[%emt 0:00:04]} 8. b3 {[%emt 0:00:02]} cxb3 {[%emt 0:00:03]} 9. axb3 {[%emt 0:00:01]} Nbd7 {[%emt 0:00:07]} 10. Bb2 {[%emt 0:00:06]} e6 {[%emt 0:00:05]} 11. Nc3 {[%emt 0:00:09]} a6 {[%emt 0:00:03]} 12. Rc1 {[%emt 0:00:21]} Be7 {[%emt 0:00:10]} 13. Nd3 {[%emt 0:00:48]} O-O {[%emt 0:00:10]} 14. Ne4 {[%emt 0:00:00]} Nxe4 {[%emt 0:00:06]} 15. Bxe4 {[%emt 0:00:02]} a5 {[%emt 0:00:01]} 16. Qc2 {[%emt 0:00:17]} Nf6 {[%emt 0:00:09]} 17. Bf3 {[%emt 0:00:02]} a4 {[%emt 0:00:07]} 18. bxa4 {[%emt 0:00:05]} Rxa4 {[%emt 0:00:03]} 19. Ne5 {[%emt 0:00:09]} Nd5 {[%emt 0:00:08]} 20. Nxc6 {[%emt 0:00:17]} Bf6 {[%emt 0:00:12]} 21. e4 {[%emt 0:00:31]} Rc4 {[%emt 0:00:05]} 22. Qb3 {[%emt 0:00:12]} Qxc6 {[%emt 0:00:21]} 23. exd5 {[%emt 0:00:04]} exd5 {[%emt 0:00:01]} 24. Be2 {[%emt 0:00:07]} Bxd4 {[%emt 0:00:16]} 25. Ba3 {[%emt 0:00:15]} Rc8 {[%emt 0:00:06]} 26. Rb1 {[%emt 0:00:08]} Ba6 {[%emt 0:00:23]} 27. Bxc4 {[%emt 0:00:02]} dxc4 {[%emt 0:00:02]} 28. Qd1 {[%emt 0:00:00]} Bb7 {[%emt 0:00:01]} 0-1